Cogmind - Beta 11.1 @@@ ROGUE MODE // 2022.09.05 @ 13:31:37 Player: ILikeMonsters1890 Result: Destroyed by YI-UF0 with YI-UF0's Doublenader Performance ------------- Evolutions (0) 0 Regions Visited (2) 400 Robots Destroyed (17) 85 Value Destroyed (249) 249 Prototype IDs (2) 40 Alien Tech Used (0) 0 Bonus (0) 0 TOTAL SCORE: 774 Bonus ------- None Cogmind --------- Core Integrity 0/250 Matter 295/300 Energy 100/100 System Corruption 0% Temperature Cool (0) Movement Rolling (80) Location -10/Mines Parts ------- > --- POWER (1) -------- (None) > --- PROPULSION (2) --- Wheel > --- UTILITY (2) ------ Medium Storage Unit Signal Interpreter > --- WEAPON (2) ------- (None) > --- INVENTORY (10) --- Improved Ion Engine Heat Sink Sensor Array Transport Network Coupler Peak State ------------ > --- POWER ------------ Ion Engine > --- PROPULSION ------- Compact Wheel Compact Wheel > --- UTILITY ---------- Small Storage Unit Improved Terrain Scanner > --- WEAPON ----------- Assault Rifle Assault Rifle > --- INVENTORY -------- Ion Engine Light Ion Engine Wheel Wheel Wheel Wheel Improved Terrain Scanner EM Pulse Gun [Rating: 10] Favorites ----------- Power Ion Engine Engine Ion Engine Propulsion Compact Wheel Wheel Compact Wheel Utility Small Storage Unit Device Sensor Array Storage Small Storage Unit Processor Signal Interpreter Weapon Assault Rifle Ballistic Gun Assault Rifle Build | -11 -10 -10 ------- Run | Scr Mat Min Slots Evolved . | . . . Power . | . . . Propulsion . | . . . Utility . | . . . Weapon . | . . . Parts Attached 18 | 8 4 6 Power 3 | 1 1 1 Engine 3 | 1 1 1 Core . | . . . Reactor . | . . . Propulsion 6 | 2 . 4 Treads . | . . . Leg . | . . . Wheel 6 | 2 . 4 Hover . | . . . Flight . | . . . Utility 6 | 3 3 . Device 3 | 2 1 . Storage 2 | 1 1 . Processor 1 | . 1 . Hackware . | . . . Protection . | . . . Artifact . | . . . Weapon 3 | 2 . 1 Energy Gun . | . . . Energy Cannon . | . . . Ballistic Gun 3 | 2 . 1 Ballistic Cannon . | . . . Launcher . | . . . Special Weapon . | . . . Impact Weapon . | . . . Slashing Weapon . | . . . Piercing Weapon . | . . . Special Melee Weapon . | . . . Unidentified Prototypes . | . . . Parts Lost 10 | . . 10 Power 2 | . . 2 Propulsion 5 | . . 5 Utility . | . . . Weapon 3 | . . 3 Highest Loss Streak 9 | . . 9 To Critical Strikes . | . . . Average Slot Usage (%) 98 | . 100 96 Engine 14 | . 14 14 Wheel 27 | . 28 26 Device 8 | . 14 . Storage 14 | . 14 14 Processor 5 | . . 14 Ballistic Gun 27 | . 28 26 Naked Turns . | . . . Heaviest Build 22 | 15 22 21 Greatest Support 32 | 32 32 32 Greatest Overweight (x) 1 | . . 1 Average Overweight (x) . | . . . Largest Inventory Capacity 10 | 8 10 10 Average Capacity 8 | 7 8 10 Most Carried 10 | 8 10 10 Average Carried 7 | 4 8 8 Final Capacity 10 | 8 10 10 Final Carried 10 | 8 10 4 Class Distribution -------------------- 100% | Mutant Dominant Class ---------------- Mutant | -10/Materials Mutant | -10/Mines Resources | -11 -10 -10 ----------- Run | Scr Mat Min Matter Collected 564 | 376 156 32 Remotely . | . . . Salvage Created 500 | 214 254 32 Parts 43 | 24 17 2 Haulers Intercepted 1 | . 1 . Recyclers Shooed . | . . . Parts Field Recycled . | . . . Retrieved Matter . | . . . Parts Self-Destructed . | . . . Prevented . | . . . Kills | -11 -10 -10 ------- Run | Scr Mat Min Combat Hostiles Destroyed 6 | . 4 2 Guns 6 | . 4 2 Classes Destroyed 6 | 2 3 1 Tunneler 8 | 8 . . Hauler 1 | . 1 . Recycler 1 | 1 . . Watcher 1 | . 1 . Swarmer 2 | . . 2 Grunt 4 | . 4 . Best Kill Streak 3 | 3 2 2 Combat Bots Only 2 | . 2 2 Max Kills in Single Turn 1 | 1 1 1 Gunslinging . | . . . Exploded . | . . . Melee . | . . . Uniques/NPCs Destroyed . | . . . Combat | -11 -10 -10 -------- Run | Scr Mat Min Damage Taken 970 | . 171 799 Core 265 | . 23 242 Absorbed by Shields . | . . . Core Remaining (%) 100 | 100 . . Volleys Fired 44 | 16 21 7 Largest 2 | 2 2 2 Hottest 40 | 40 40 40 Shots Fired 86 | 32 42 12 Gun 86 | 32 42 12 Cannon . | . . . Launcher . | . . . Special . | . . . Kinetic 86 | 32 42 12 Thermal . | . . . Explosive . | . . . Electromagnetic . | . . . Robot Hit Streak 8 | 5 8 2 Robot Miss Streak 4 | 3 4 4 Penetration Max . | . . . Secondary Targets . | . . . Shots Hit Robots 51 | 17 29 5 Core Hits 24 | 10 11 3 Critical Kills . | . . . Critical Parts Destroyed . | . . . Critical Strikes . | . . . Melee Attacks . | . . . Impact . | . . . Slashing . | . . . Piercing . | . . . Sneak Attacks . | . . . Combat Hostiles . | . . . Follow-up Attacks . | . . . Damage Inflicted 652 | 213 365 74 Guns 632 | 213 365 54 Cannons . | . . . Explosions . | . . . Melee . | . . . Ramming 20 | . . 20 Kinetic 632 | 213 365 54 Thermal . | . . . Explosive . | . . . Electromagnetic . | . . . Impact . | . . . Slashing . | . . . Piercing . | . . . Highest Corruption . | . . . Average Corruption . | . . . Corruption Purged . | . . . Corruption Blocked . | . . . Overload Shots . | . . . Overflow Damage . | . . . Projectiles . | . . . Explosions . | . . . Melee . | . . . Knockbacks . | . . . Impact . | . . . Kinetic . | . . . Secondary . | . . . Self-Inflicted Damage 10 | . . 10 Shots . | . . . Rammed 5 | . . 5 Targets Rammed 5 | . . 5 Kicked . | . . . Crushed . | . . . Highest Temperature 6 | 6 2 1 Average Temperature 2 | 6 2 1 Received Heat Transfer 93 | . 93 . Siege Activations . | . . . Robots Corrupted . | . . . Combat Hostiles . | . . . Parts Fried . | . . . Impact Corruptions . | . . . Robots Melted . | . . . Combat Hostiles . | . . . Parts Melted . | . . . Heat Transferred . | . . . Parts Sabotaged . | . . . Parts Stolen . | . . . Parts Stripped . | . . . Power Chain Reactions . | . . . Missiles Intercepted . | . . . Alert | -11 -10 -10 ------- Run | Scr Mat Min Peak Influence 189 | 45 189 128 Initial 73 | . 29 73 Average 81 | 20 110 112 Maximum Alert Level . | . . . Low Security (%) 100 | 100 100 100 Level 1 . | . . . Level 2 . | . . . Level 3 . | . . . Level 4 . | . . . Level 5 . | . . . High Security . | . . . Max Security . | . . . Squads Dispatched 1 | . 1 . Investigation 1 | . 1 . Extermination . | . . . Reinforcement . | . . . Assault . | . . . Garrison . | . . . Intercept . | . . . Searches Triggered . | . . . Construction Impeded . | . . . Haulers Reinforced . | . . . Active Scanning Responses . | . . . Cargo Convoy Interrupts . | . . . Stealth | -11 -10 -10 --------- Run | Scr Mat Min Distress Signals 1 | . 1 . Communications Jammed . | . . . Distress Signals . | . . . Times Spotted 11 | . 7 4 Peak Tracking Total 3 | . 3 3 Tactical Retreats 1 | . . 1 Traps | -11 -10 -10 ------- Run | Scr Mat Min Traps Triggered . | . . . Indirectly . | . . . Trap Hack Attempts . | . . . Triggered . | . . . Disarmed 6 | . 6 . Reprogrammed . | . . . Reused . | . . . Traps Extracted . | . . . Installed . | . . . Triggered . | . . . Machines | -11 -10 -10 ---------- Run | Scr Mat Min Machines Disabled . | . . . Max in Single Turn . | . . . Machines Sabotaged . | . . . Garrisons Compromised . | . . . Overloaded Fab Kills . | . . . Hacking | -11 -10 -10 --------- Run | Scr Mat Min Machines Accessed 3 | . 3 . Terminals 2 | . 2 . Fabricators . | . . . Repair Stations . | . . . Recycling Units 1 | . 1 . Scanalyzers . | . . . Garrison Access . | . . . Total Hacks 12 | . 12 . Successful 8 | . 8 . Failed 4 | . 4 . Catastrophic . | . . . Database Lockouts . | . . . Manual 8 | . 8 . Terminals 10 | . 10 . Fabricators . | . . . Repair Stations . | . . . Recycling Units 2 | . 2 . Scanalyzers . | . . . Garrison Access . | . . . Terminal Hacks 2 | . 2 . Prototype ID Bank 1 | . 1 . Disarm Traps 1 | . 1 . Fabricator Hacks . | . . . Repair Station Hacks . | . . . Recycling Unit Hacks 2 | . 2 . Retrieve Matter 1 | . 1 . Retrieve Components 1 | . 1 . Scanalyzer . | . . . Garrison Access Hacks . | . . . Unauthorized Hacks 4 | . 4 . Terminals 4 | . 4 . Assimilate 2 | . 2 . Botnet 2 | . 2 . Fabricators . | . . . Repair Stations . | . . . Recycling Units . | . . . Scanalyzers . | . . . Garrison Access . | . . . Data Cores Recovered . | . . . Used . | . . . Hacking Detections 2 | . 2 . Full Trace Events 1 | . 1 . Feedback Events . | . . . Feedback Blocked . | . . . Robot Schematics Acquired . | . . . Robots Built . | . . . Authchips . | . . . Time . | . . . Total Robot Build Rating . | . . . Part Schematics Acquired . | . . . Parts Built . | . . . Authchips . | . . . Time . | . . . Total Part Build Rating . | . . . Parts Repaired . | . . . Time . | . . . Parts Recycled . | . . . Recycled Matter . | . . . Retrieved Matter . | . . . Retrieved Components . | . . . Parts Scanalyzed . | . . . Part Schematics Acquired . | . . . Parts Damaged . | . . . Bothacking | -11 -10 -10 ------------ Run | Scr Mat Min Used RIF Installer . | . . . Robots Hacked . | . . . Non-combat . | . . . Combat . | . . . Robot Hacks Applied . | . . . Relay Couplers Released . | . . . Fabnet Peak Effective % . | . . . Robots Rewired . | . . . Allies Hacked . | . . . Hacks Repelled . | . . . Allies | -11 -10 -10 -------- Run | Scr Mat Min Total Allies . | . . . Largest Group . | . . . Highest-Rated Group . | . . . Highest-Rated Ally . | . . . Total Orders . | . . . Ally Attacks . | . . . Total Damage . | . . . Kills . | . . . Allies Corrupted . | . . . Allies Melted . | . . . Intel | -11 -10 -10 ------- Run | Scr Mat Min Robot Analysis Total . | . . . Derelict Logs Recovered . | . . . Drone Launches . | . . . Drone Recoveries . | . . . Exploration | -11 -10 -10 ------------- Run | Scr Mat Min Turns Passed 879 | 287 363 229 Spaces Moved 664 | 217 242 205 Core 6 | 6 . . Treads . | . . . Legs . | . . . Wheels 658 | 211 242 205 Hover . | . . . Flight . | . . . Fastest Speed 50 | 50 100 90 Average Speed 97 | 98 100 92 Slowest Speed 115 | 100 100 115 Overloaded Moves . | . . . Propulsion Burnouts . | . . . Robots Hopped . | . . . Cave-ins Triggered . | . . . Exploration Rate (%) 36 | 8 42 59 Regions Visited 2 Branch Regions 1 Pre-discovered Areas . | . . . Known Exits Taken 1 | . 1 . Unknown Exits Taken 1 | 1 . . Scrap Searched . | . . . Spaces Dug . | . . . Terrain Destroyed . | . . . Melee . | . . . Projectile . | . . . AOE . | . . . Terrain Rammed . | . . . Walls Destroyed . | . . . Machines Disabled . | . . . Actions | -11 -10 -10 --------- Run | Scr Mat Min Total 818 | 257 327 234 Wait 46 | . 35 11 Move 662 | 216 241 205 Hop . | . . . Pick Up 30 | 16 14 . Fast Attach . | . . . Attach 13 | 7 . 6 Detach . | . . . Swap 5 | 1 4 . Drop 13 | 1 12 . Fire 44 | 16 21 7 Melee . | . . . Ram 5 | . . 5 Kick . | . . . Crush . | . . . Escape Stasis . | . . . Rewire . | . . . Trap . | . . . Miscellaneous . | . . . Route ------- -11/Scrapyard -10/Materials (discovered 2 exits: *Min x2) -10/Mines History --------- Turn | Location | Event 3 | -11/Scrapyard | Discovered new exit (range 16) 288 | -11/Scrapyard | Entered Materials 288 | -10/Materials | Discovered new exit (range 14) 308 | -10/Materials | Build established: Mutant 422 | -10/Materials | Discovered new exit (range 14) 651 | -10/Materials | Identified exit to Mines 651 | -10/Materials | Entered Mines 865 | -10/Mines | Core integrity fell below 50% 875 | -10/Mines | Core integrity fell below 20% 880 | -10/Mines | Destroyed by YI-UF0 with YI-UF0's Doublenader Last Messages --------------- 00731_ YB-G0C(g) slips into the shadows. 00750_ T-07 Excavator is excavating. 00764_ K-01 Serf collects debris. 00856_ Com. Wheel destroyed. 00856_ Imp. Ion Engine destroyed. 00863_ The unstable cave ceiling collapses. 00866_ Wheel destroyed. 00868_ Assault Rifle destroyed. 00868_ Wheel destroyed. 00868_ Assault Rifle destroyed. 00869_ The unstable cave ceiling collapses. 00870_ Wheel destroyed. 00876_ Slammed into YI-UF0. 00877_ The unstable cave ceiling collapses. 00877_ Sml. Storage Unit crushed. 00877_ Slammed into YI-UF0. 00879_ The unstable cave ceiling collapses. 00879_ Slammed into YI-UF0. 00880_ Imp. Ion Engine destroyed. 00880_ Lgt. Assault Rifle destroyed. Map ----- +----------------------------------------------------+ | ???????????????????## ######## #????? | | ????????????????????## #### #??????# ####????? | | ?????????????????????## ##??# ##???### #???????? | | ??????????????????????####???# ##### #???????? | | ?????????????????????????????# #######?? | | ?????????????????????????????# ^ ^ #?? | | ????????????????????????????## ## #?? | | ???????????????????????###### # #### ### | | ???????????????????????# # #?## # | | ???????????????????????# ### # #?# | | ???????????????????????????## #### ^ #?# | | ????????????????????????????# ##??########?## | | ????????????????????????????# #?????????????### | | ????????????????????????????# #???????????????## | | ????????????????????????????# #????????????????# | | ????????????? "?????????????# #????????????????# | | ??????????????"?????????????# #????????????????## | | ??????????????? ????????????# #?????????????????## | | ?????????????### ???????????# #??????????????????# | | ?????????????? ??#####???# #####??????????????? | | ??????????????## ### ##### #??????????????? | | ?????????### ## #??????????????? | | ???????? ##?????????????? | | ???????? #?????????????# | | ??????????# g #???????####### | | ??????????# @ # #???????# | | ?????????????????# # # #???????# #???# | | ?????????????????## #???????# #???? | | ??????????????# ##???????# ##### | | ??????????????#### #????????# | | ?????????????????# # ###????????# ##### | | ?????????????????# ######??????????# #???# | | ?????????????????## # #???????????????# #???# | | ??????????????????# ## ???????????????# #???# | | ??????????????????# ?## # #??????????????# #???# | | ??????????????????# ??## ##??????????????# #???? | | ??????????????????# ??? ????????????????# #???? | | ?????????????????? ???? ???????????????# #???? | | ?????????????????? ???? ?????????????### ##### | | ??????????????????????? """"????????????# | | ??????????????????????? """?????????# ### """ | | ???????????????????????? ????????????# """ | | ???????????????????????? ????????????##### """ | | ?????????????????????????????????????????# | | ?????????????????????????????????????????# """ | | ?????????????????????????????????????????# """ | | ?????????????????????????????????????????# """ | | ?????????????????????????????????????????# | | ?????????????????????????????????????????# | | ?????????????????????????????????????????# | +----------------------------------------------------+ Best States ------------- Heat Dissipation 25 Energy Generation 12 Energy Capacity 265 Matter Stores 300 Matter Capacity 300 Sight Range 16 Robot Scan Range 14 Terrain Scan Range 16 Terrain Scan Density 10 Evasion (%) 42 Item Schematics ----------------- None Robot Schematics ------------------ None Fabricated ------------ Nothing Alien Tech Used ----------------- None Achievements -------------- None Challenges ------------ None Game ------ Seed ReactionMediumMediator Manual? 0 Play Time 00:17:32 Cumulative 50.1 hours Start 2022.09.05 @ 13:08:42 End 2022.09.05 @ 13:31:37 Sessions 1 Manual Loads 0 Difficulty Rogue Special Mode None Game No. 56 Rogue 56 Adventurer 0 Explorer 0 Win Type - Total 0 Types 0/0/0/0/0/0/0/0/0 Lore% 47 Gallery% 36 Achievement% 28 Wizard Run 0 Options --------- ASCII 0 Keyboard 0 Movement Numpad Keybinds 0 Fullscreen 2 Font 18/SmallcapsGlow Map View 76x50 Tactical HUD 1 Map Filters NONE Filters NONE Steam 1 RUN: 2add0a61-89b1-4003-93ba-e882560f55a7